fUST/lending_fUST_20250323
["ID","MTS","AMOUNT","RATE_DAILY","PERIOD"]
[356568019,1742687233084,-4317.48286909,0.00025353,2]
[356568020,1742687242144,-734.70278067,0.00025353,2]
[356568046,1742687432155,-1153.70281793,0.00025353,2]
[356568047,1742687432165,-186.4270124,0.00025432,2]
[356568048,1742687432175,-244.2996988,0.00025458,2]
[356568049,1742687432184,-200.0,0.0002587,2]
[356568050,1742687432193,-3000.0,0.00026,21]
[356568051,1742687432204,-5000.0,0.00026283,2]
[356568052,1742687432213,-300.0,0.00026335,2]
[356568053,1742687432222,-254.50436886,0.00026336,2]
[356568054,1742687432232,-500.0,0.00026336,2]
[356568055,1742687432241,-350.0,0.00026336,2]
[356568056,1742687432250,-500.0,0.00026336,2]
[356568057,1742687432260,-500.0,0.00026336,2]
[356568058,1742687432269,-500.0,0.00026336,2]
[356568059,1742687432279,-500.0,0.00026336,2]
[356568060,1742687432289,-500.0,0.00026336,2]
[356568061,1742687432298,-500.0,0.00026336,2]
[356568062,1742687432307,-382.59930488,0.00026336,2]
[356568063,1742687432316,-500.0,0.00026336,2]
[356568064,1742687432325,-271.0826162,0.00026336,2]
[356568065,1742687432334,-151.0,0.00026336,2]
[356568066,1742687432388,-258.486223,0.00026336,2]
[356568067,1742687432398,-55126.72073886,0.00026337,2]
[356568090,1742687438019,-293.52567489,0.00026247,2]
[356568091,1742687438030,-4582.49671548,0.00026337,2]
[356568092,1742687438045,-1491.05017998,0.00026337,2]
[356568093,1742687438063,-862.04420907,0.00026337,2]
[356568100,1742687440305,-420.87043536,0.00026337,2]
[356568101,1742687440317,-1363.14015772,0.00026337,2]
[356568102,1742687440392,-150.00835849,0.00026337,2]
[356568103,1742687440411,-1745.0654757,0.00026337,2]
[356568104,1742687440422,-270.03013613,0.00026337,2]
[356568126,1742687443309,-1148.4465268,0.00026337,2]
[356568135,1742687446068,-637.33275232,0.00026337,2]
[356568137,1742687446535,-636.42070342,0.00026337,2]
[356568138,1742687446561,-672.04,0.00026337,2]
[356568139,1742687446572,-13897.53252113,0.00026337,2]
[356568149,1742688341111,-214.39043355,0.00024952,2]
[356568150,1742688341133,-293.2281406,0.00025204,2]
[356568186,1742688632138,-500.0,0.00025205,2]
[356568187,1742688632148,-1.02,0.00025205,2]
[356568188,1742688632244,-296.66567674,0.00025205,2]
[356568189,1742688632300,-202.31432326,0.00025205,2]
[356568190,1742688632309,-500.0,0.00025205,2]
[356568191,1742688632319,-500.0,0.00025205,2]
[356568192,1742688632329,-500.0,0.00025205,2]
[356568193,1742688632339,-500.0,0.00025205,2]
[356568194,1742688632349,-256.83496559,0.00026125,2]
[356568195,1742688632359,-500.97020971,0.00026225,2]
[356568196,1742688632368,-117762.619496,0.00026226,2]
[356568197,1742688632377,-151.0,0.00026236,2]
[356568198,1742688632386,-151.0,0.00026236,2]
[356568199,1742688632396,-5000.0,0.00026236,2]
[356568200,1742688632405,-222000.0,0.00026236,2]
[356568201,1742688632415,-29440.6548739,0.00026306,2]
[356568202,1742688632424,-151.0,0.00026316,2]
[356568203,1742688632433,-151.0,0.00026316,2]
[356568204,1742688632443,-29440.6548739,0.00026317,2]
[356568205,1742688632452,-88321.9646218,0.00026326,2]
[356568206,1742688632462,-151.0,0.00026327,2]
[356568207,1742688632471,-151.0,0.00026327,2]
[356568208,1742688632480,-151.0,0.00026336,2]
[356568209,1742688632490,-151.0,0.00026336,2]
[356568210,1742688632499,-457.2651358,0.00026338,2]
[356568211,1742688632510,-152.0,0.00026338,2]
[356568212,1742688632526,-293.37171301,0.00026346,2]
[356568213,1742688632535,-500.0,0.0002648,2]
[356568214,1742688632545,-557.80168418,0.00026545,2]
[356568215,1742688632555,-151.0,0.00026736,2]
[356568216,1742688632566,-151.0,0.00026736,2]
[356568217,1742688632576,-1700.0,0.00026766,2]
[356568218,1742688632585,-52620.2272695,0.00026776,3]
[356568219,1742688632596,-34397.25555816,0.00026776,2]
[356568220,1742688632605,-160.0,0.00026776,3]
[356568221,1742688632614,-834.31595416,0.00026776,3]
[356568222,1742688632626,-151.0,0.00026776,2]
[356568223,1742688632639,-151.0,0.00026776,2]
[356568224,1742688632651,-151.0,0.00026776,2]
[356568225,1742688632664,-151.0,0.00026776,2]
[356568226,1742688632676,-151.0,0.00026776,2]
[356568227,1742688632688,-197.380604,0.00026776,2]
[356568228,1742688632698,-12458.93820146,0.00026776,3]
[356568229,1742688632709,-160.0,0.00026776,3]
[356568230,1742688632720,-256.83496552,0.0002684,2]
[356568231,1742688632732,-1368.31244385,0.000269,4]
[356568232,1742688632744,-4195.44367268,0.00026902,2]
[356568233,1742688632755,-151.0,0.00027,16]
[356568234,1742688632767,-151.0,0.00027009,2]
[356568235,1742688632778,-250.0,0.00027009,2]
[356568236,1742688632791,-295.974,0.00027009,2]
[356568237,1742688632802,-182.449,0.00027009,2]
[356568238,1742688632814,-155.598,0.00027009,2]
[356568239,1742688632826,-196.071,0.00027009,2]
[356568240,1742688632837,-150.0,0.00027009,2]
[356568241,1742688632850,-541.0,0.00027009,2]
[356568242,1742688632862,-150.646,0.00027009,2]
[356568243,1742688632873,-2292.067,0.00027009,2]
[356568244,1742688632885,-1914.0,0.00027009,2]
[356568245,1742688632896,-151.0,0.000271,15]
[356568246,1742688632907,-1368.31244369,0.00027107,4]
[356568247,1742688632917,-151.0,0.000272,18]
[356568248,1742688632929,-151.0,0.000273,13]
[356568249,1742688632941,-151.0,0.000273,20]
[356568250,1742688632953,-1368.31244369,0.00027314,4]
[356568251,1742688632965,-4654.70169221,0.0002736,2]
[356568252,1742688632976,-500.0,0.00027373,2]
[356568253,1742688632987,-351.75922718,0.00027373,2]
[356568254,1742688632997,-500.0,0.00027373,2]
[356568255,1742688633008,-500.0,0.00027373,2]
[356568256,1742688633020,-500.0,0.00027373,2]
[356568257,1742688633031,-500.0,0.00027373,2]
[356568258,1742688633043,-500.0,0.00027373,2]
[356568259,1742688633055,-500.0,0.00027373,2]
[356568260,1742688633066,-500.0,0.00027373,2]
[356568261,1742688633078,-500.0,0.00027373,2]
[356568262,1742688633092,-500.0,0.00027397,2]
[356568263,1742688633105,-500.0,0.00027397,2]
[356568264,1742688633118,-774.91,0.00027397,2]
[356568265,1742688633131,-500.0,0.00027397,2]
[356568266,1742688633144,-500.0,0.00027397,2]
[356568267,1742688633157,-500.0,0.00027397,2]
[356568268,1742688633170,-500.0,0.00027397,2]
[356568269,1742688633180,-676.8,0.00027397,2]
[356568270,1742688633190,-500.0,0.00027397,2]
[356568271,1742688633200,-833.84,0.00027397,2]
[356568272,1742688633211,-500.0,0.00027397,2]
[356568273,1742688633222,-500.0,0.00027397,2]
[356568274,1742688633233,-500.0,0.00027397,2]
[356568275,1742688633247,-992.78,0.00027397,2]
[356568276,1742688633259,-500.0,0.00027397,2]
[356568277,1742688633272,-568.72,0.00027397,2]
[356568278,1742688633284,-500.0,0.00027397,2]
[356568279,1742688633295,-500.0,0.00027397,2]
[356568280,1742688633306,-500.0,0.00027397,2]
[356568281,1742688633317,-573.63,0.00027397,2]
[356568282,1742688633329,-500.0,0.00027397,2]
[356568283,1742688633341,-500.0,0.00027397,2]
[356568284,1742688633353,-1106.14,0.00027397,2]
[356568285,1742688633364,-500.0,0.00027397,2]
[356568286,1742688633377,-942.37,0.00027397,2]
[356568287,1742688633388,-500.0,0.00027397,2]
[356568288,1742688633399,-2000.0,0.00027397,2]
[356568289,1742688633409,-500.0,0.00027397,2]
[356568290,1742688633420,-500.0,0.00027397,2]
[356568291,1742688633431,-500.0,0.00027397,2]
[356568292,1742688633442,-720.64,0.00027397,2]
[356568293,1742688633453,-660.05,0.00027397,2]
[356568294,1742688633465,-500.0,0.00027397,2]
[356568295,1742688633476,-500.0,0.00027397,2]
[356568296,1742688633487,-302.20220316,0.00027397,2]
[356568297,1742688633501,-500.0,0.00027397,2]
[356568298,1742688633514,-500.0,0.00027397,2]
[356568299,1742688633526,-500.0,0.00027397,2]
[356568300,1742688633537,-571.41,0.00027397,2]
[356568301,1742688633549,-500.0,0.00027397,2]
[356568302,1742688633560,-500.0,0.00027397,2]
[356568303,1742688633572,-500.0,0.00027397,2]
[356568304,1742688633583,-500.0,0.00027397,2]
[356568305,1742688633595,-927.06,0.00027397,2]
[356568306,1742688633609,-500.0,0.00027397,2]
[356568307,1742688633620,-500.0,0.00027397,2]
[356568308,1742688633632,-592.97426214,0.00027397,2]
[356568309,1742688633644,-538.96,0.00027397,2]
[356568310,1742688633656,-500.0,0.00027397,2]
[356568311,1742688633668,-500.0,0.00027397,2]
[356568312,1742688633679,-500.0,0.00027397,2]
[356568313,1742688633690,-500.0,0.00027397,2]
[356568314,1742688633701,-500.0,0.00027397,2]
[356568315,1742688633711,-615.02,0.00027397,2]
[356568316,1742688633722,-1329.56,0.00027397,2]
[356568317,1742688633734,-910.08,0.00027397,2]
[356568318,1742688633745,-251.33073464,0.00027397,2]
[356568319,1742688633755,-835.86,0.00027397,2]
[356568320,1742688633766,-685.5,0.00027397,2]
[356568321,1742688633778,-500.0,0.00027397,2]
[356568322,1742688633789,-500.0,0.00027397,2]
[356568323,1742688633801,-500.0,0.00027397,2]
[356568324,1742688633812,-500.0,0.00027397,2]
[356568325,1742688633823,-500.0,0.00027397,2]
[356568326,1742688633834,-500.0,0.00027397,2]
[356568327,1742688633846,-500.0,0.00027397,2]
[356568328,1742688633857,-516.3,0.00027397,2]
[356568329,1742688633869,-500.0,0.00027397,2]
[356568330,1742688633879,-552.73,0.00027397,2]
[356568331,1742688633890,-500.0,0.00027397,2]
[356568332,1742688633901,-1025.12,0.00027397,2]
[356568333,1742688633912,-500.0,0.00027397,2]
[356568334,1742688633923,-500.0,0.00027397,2]
[356568335,1742688633933,-500.0,0.00027397,2]
[356568336,1742688633944,-500.0,0.00027397,2]
[356568337,1742688633955,-683.74,0.00027397,2]
[356568338,1742688633966,-649.0,0.00027397,2]
[356568339,1742688633976,-500.0,0.00027397,2]
[356568340,1742688633987,-1150.99,0.00027397,2]
[356568341,1742688633998,-789.84,0.00027397,2]
[356568342,1742688634011,-512.55,0.00027397,2]
[356568343,1742688634022,-500.0,0.00027397,2]
[356568344,1742688634033,-500.0,0.00027397,2]
[356568345,1742688634044,-500.0,0.00027397,2]
[356568346,1742688634055,-500.0,0.00027397,2]
[356568347,1742688634066,-500.0,0.00027397,2]
[356568348,1742688634077,-516.32,0.00027397,2]
[356568349,1742688634089,-500.0,0.00027397,2]
[356568350,1742688634100,-1107.6,0.00027397,2]
[356568351,1742688634111,-500.0,0.00027397,2]
[356568352,1742688634122,-674.0,0.00027397,2]
[356568353,1742688634133,-500.0,0.00027397,2]
[356568354,1742688634144,-740.39,0.00027397,2]
[356568355,1742688634155,-500.0,0.00027397,2]
[356568356,1742688634166,-500.0,0.00027397,2]
[356568357,1742688634176,-500.0,0.00027397,2]
[356568358,1742688634188,-500.0,0.00027397,2]
[356568359,1742688634199,-500.0,0.00027397,2]
[356568360,1742688634210,-559.72,0.00027397,2]
[356568361,1742688634221,-500.0,0.00027397,2]
[356568362,1742688634231,-500.0,0.00027397,2]
[356568363,1742688634242,-500.0,0.00027397,2]
[356568364,1742688634252,-500.0,0.00027397,2]
[356568365,1742688634263,-500.0,0.00027397,2]
[356568366,1742688634275,-635.49,0.00027397,2]
[356568367,1742688634286,-697.55,0.00027397,2]
[356568368,1742688634298,-500.0,0.00027397,2]
[356568369,1742688634310,-500.0,0.00027397,2]
[356568370,1742688634321,-200.0,0.00027397,2]
[356568371,1742688634334,-500.0,0.00027397,2]
[356568372,1742688634345,-884.2,0.00027397,2]
[356568373,1742688634357,-500.0,0.00027397,2]
[356568374,1742688634368,-500.0,0.00027397,2]
[356568375,1742688634380,-553.45,0.00027397,2]
[356568376,1742688634391,-500.0,0.00027397,2]
[356568377,1742688634403,-500.0,0.00027397,2]
[356568378,1742688634414,-850.93,0.00027397,2]
[356568379,1742688634425,-500.0,0.00027397,2]
[356568380,1742688634435,-500.0,0.00027397,2]
[356568381,1742688634446,-825.45,0.00027397,2]
[356568382,1742688634457,-500.0,0.00027397,2]
[356568383,1742688634468,-883.99,0.00027397,2]
[356568384,1742688634479,-500.0,0.00027397,2]
[356568385,1742688634489,-500.0,0.00027397,2]
[356568386,1742688634500,-500.0,0.00027397,2]
[356568387,1742688634515,-2036.75,0.00027397,2]
[356568388,1742688634528,-500.0,0.00027397,2]
[356568389,1742688634540,-500.0,0.00027397,2]
[356568390,1742688634552,-1091.97,0.00027397,2]
[356568391,1742688634564,-500.0,0.00027397,2]
[356568392,1742688634577,-810.69,0.00027397,2]
[356568393,1742688634590,-579.9,0.00027397,2]
[356568394,1742688634602,-881.26,0.00027397,2]
[356568395,1742688634614,-500.0,0.00027397,2]
[356568396,1742688634625,-1324.02,0.00027397,2]
[356568397,1742688634637,-847.09,0.00027397,2]
[356568398,1742688634651,-2231.29,0.00027397,2]
[356568399,1742688634663,-500.0,0.00027397,2]
[356568400,1742688634675,-864.68,0.00027397,2]
[356568401,1742688634687,-500.0,0.00027397,2]
[356568402,1742688634699,-2261.43,0.00027397,2]
[356568403,1742688634711,-500.0,0.00027397,2]
[356568404,1742688634723,-500.0,0.00027397,2]
[356568405,1742688634735,-1215.74,0.00027397,2]
[356568406,1742688634746,-500.0,0.00027397,2]
[356568407,1742688634757,-500.0,0.00027397,2]
[356568408,1742688634771,-967.76,0.00027397,2]
[356568409,1742688634784,-2169.6,0.00027397,2]
[356568410,1742688634794,-500.0,0.00027397,2]
[356568411,1742688634807,-890.66,0.00027397,2]
[356568412,1742688634818,-674.26,0.00027397,2]
[356568413,1742688634830,-150.17,0.00027397,2]
[356568414,1742688634841,-844.12,0.00027397,2]
[356568415,1742688634852,-579.23,0.00027397,2]
[356568416,1742688634863,-483.36148073,0.00027397,2]
[356568417,1742688634874,-513.25,0.00027397,2]
[356568418,1742688634884,-500.0,0.00027397,2]
[356568419,1742688634895,-1496.4,0.00027397,2]
[356568420,1742688634907,-1474.91,0.00027397,2]
[356568421,1742688634919,-500.0,0.00027397,2]
[356568422,1742688634929,-500.0,0.00027397,2]
[356568423,1742688634940,-500.0,0.00027397,2]
[356568424,1742688634954,-500.0,0.00027397,2]
[356568425,1742688634965,-500.0,0.00027397,2]
[356568426,1742688634976,-2826.27,0.00027397,2]
[356568427,1742688634987,-500.0,0.00027397,2]
[356568428,1742688634998,-500.0,0.00027397,2]
[356568429,1742688635009,-605.22,0.00027397,2]
[356568430,1742688635019,-500.0,0.00027397,2]
[356568431,1742688635030,-1630.72,0.00027397,2]
[356568432,1742688635040,-1030.78,0.00027397,2]
[356568433,1742688635051,-500.0,0.00027397,2]
[356568434,1742688635062,-500.0,0.00027397,2]
[356568435,1742688635073,-500.0,0.00027397,2]
[356568436,1742688635084,-576.39,0.00027397,2]
[356568437,1742688635094,-500.0,0.00027397,2]
[356568438,1742688635105,-1172.15,0.00027397,2]
[356568439,1742688635115,-1290.09,0.00027397,2]
[356568440,1742688635126,-1056.81,0.00027397,2]
[356568441,1742688635137,-500.0,0.00027397,2]
[356568442,1742688635147,-643.58,0.00027397,2]
[356568443,1742688635158,-690.28,0.00027397,2]
[356568444,1742688635169,-500.0,0.00027397,2]
[356568445,1742688635180,-500.0,0.00027397,2]
[356568446,1742688635190,-500.0,0.00027397,2]
[356568447,1742688635201,-652.92,0.00027397,2]
[356568448,1742688635212,-500.0,0.00027397,2]
[356568449,1742688635222,-500.0,0.00027397,2]
[356568450,1742688635233,-1155.62,0.00027397,2]
[356568451,1742688635243,-500.0,0.00027397,2]
[356568452,1742688635253,-508.51,0.00027397,2]
[356568453,1742688635263,-500.0,0.00027397,2]
[356568454,1742688635273,-556.11,0.00027397,2]
[356568455,1742688635283,-500.0,0.00027397,2]
[356568456,1742688635294,-500.0,0.00027397,2]
[356568457,1742688635303,-687.7,0.00027397,2]
[356568458,1742688635313,-616.44,0.00027397,2]
[356568459,1742688635322,-500.0,0.00027397,2]
[356568460,1742688635333,-500.0,0.00027397,2]
[356568461,1742688635343,-500.0,0.00027397,2]
[356568462,1742688635353,-1159.71,0.00027397,2]
[356568463,1742688635362,-800.72,0.00027397,2]
[356568464,1742688635372,-500.0,0.00027397,2]
[356568465,1742688635381,-500.0,0.00027397,2]
[356568466,1742688635717,-500.0,0.00027397,2]
[356568467,1742688635782,-500.0,0.00027397,2]
[356568468,1742688635806,-500.0,0.00027397,2]
[356568469,1742688635820,-546.31,0.00027397,2]
[356568470,1742688635830,-500.0,0.00027397,2]
[356568471,1742688635839,-1820.01,0.00027397,2]
[356568472,1742688635850,-703.83,0.00027397,2]
[356568473,1742688635860,-500.0,0.00027397,2]
[356568474,1742688635870,-500.0,0.00027397,2]
[356568475,1742688635879,-1543.51,0.00027397,2]
[356568476,1742688635889,-5376.93,0.00027397,2]
[356568477,1742688635900,-500.0,0.00027397,2]
[356568478,1742688635917,-3376.92,0.00027397,2]
[356568479,1742688635927,-500.0,0.00027397,2]
[356568480,1742688635937,-762.97,0.00027397,2]
[356568481,1742688635947,-2050.1,0.00027397,2]
[356568482,1742688635956,-500.0,0.00027397,2]
[356568483,1742688635966,-1149.22,0.00027397,2]
[356568484,1742688635975,-1103.25,0.00027397,2]
[356568485,1742688635985,-1115.11,0.00027397,2]
[356568486,1742688635995,-6904.38,0.00027397,2]
[356568487,1742688636005,-1279.42,0.00027397,2]
[356568488,1742688636015,-2340.11,0.00027397,2]
[356568489,1742688636024,-10277.08,0.00027397,2]
[356568490,1742688636033,-3953.16,0.00027397,2]
[356568491,1742688636043,-500.0,0.00027397,2]
[356568492,1742688636052,-2984.46,0.00027397,2]
[356568493,1742688636062,-500.0,0.00027397,2]
[356568494,1742688636071,-500.0,0.00027397,2]
[356568495,1742688636082,-1725.07,0.00027397,2]
[356568496,1742688636091,-1140.84,0.00027397,2]
[356568497,1742688636101,-500.0,0.00027397,2]
[356568498,1742688636111,-951.65,0.00027397,2]
[356568499,1742688636120,-613.04,0.00027397,2]
[356568500,1742688636130,-500.0,0.00027397,2]
[356568501,1742688636140,-515.27415091,0.00027397,2]
[356568502,1742688636150,-500.0,0.00027397,2]
[356568503,1742688636160,-500.0,0.00027397,2]
[356568504,1742688636170,-769.81,0.00027397,2]
[356568505,1742688636179,-500.0,0.00027397,2]
[356568506,1742688636189,-500.0,0.00027397,2]
[356568507,1742688636199,-3492.93,0.00027397,2]
[356568508,1742688636209,-500.0,0.00027397,2]
[356568509,1742688636238,-500.0,0.00027397,2]
[356568510,1742688636248,-668.34,0.00027397,2]
[356568511,1742688636258,-808.81,0.00027397,2]
[356568512,1742688636267,-500.0,0.00027397,2]
[356568513,1742688636277,-1267.65,0.00027397,2]
[356568514,1742688636286,-500.0,0.00027397,2]
[356568515,1742688636296,-11478.5,0.00027397,2]
[356568516,1742688636306,-1003.9,0.00027397,2]
[356568517,1742688636315,-1660.82,0.00027397,2]
[356568518,1742688636325,-774.59,0.00027397,2]
[356568519,1742688636336,-1887.89,0.00027397,2]
[356568520,1742688636346,-1236.21,0.00027397,2]
[356568521,1742688636355,-500.0,0.00027397,2]
[356568522,1742688636365,-500.0,0.00027397,2]
[356568523,1742688636375,-500.0,0.00027397,2]
[356568524,1742688636385,-1864.26,0.00027397,2]
[356568525,1742688636395,-500.0,0.00027397,2]
[356568526,1742688636404,-511.67,0.00027397,2]
[356568527,1742688636414,-1026.65,0.00027397,2]
[356568528,1742688636424,-294.14934598,0.00027397,2]
[356568529,1742688636433,-500.0,0.00027397,2]
[356568530,1742688636443,-151.0,0.00027397,2]
[356568531,1742688636454,-898.27,0.00027397,2]
[356568532,1742688636464,-3339.73,0.00027397,2]
[356568533,1742688636474,-1188.8,0.00027397,2]
[356568534,1742688636483,-558.36,0.00027397,2]
[356568535,1742688636493,-593.21172385,0.00027397,2]
[356568536,1742688636502,-500.0,0.00027397,2]
[356568537,1742688636511,-1895.1,0.00027397,2]
[356568538,1742688636527,-3433.19563465,0.00027397,2]
[356568539,1742688636831,154.5175,0.00026224,2]
[356568542,1742688638083,-3855.48787274,0.00026125,2]
[356568543,1742688638163,-1144.51212726,0.00026125,2]
[356568544,1742688638173,-93.39131469,0.00026224,2]
[356568545,1742688638183,-324.13338119,0.00026224,2]
[356568546,1742688638192,-500.0,0.00026224,2]
[356568547,1742688638202,-500.0,0.00026224,2]
[356568548,1742688638212,-500.0076503,0.00026224,2]
[356568549,1742688638223,-500.0,0.00026224,2]
[356568550,1742688638233,-500.0,0.00026224,2]
[356568551,1742688638242,-500.0,0.00026224,2]
[356568552,1742688638251,-299.26871663,0.00026224,2]
[356568553,1742688638263,-200.73128337,0.00026224,2]
[356568554,1742688638273,-500.0,0.00026224,2]
[356568555,1742688638282,-500.0,0.00026224,2]
[356568557,1742688638291,-584.86160097,0.00026224,2]
[356568558,1742688638301,-500.0,0.00026224,2]
[356568559,1742688638310,-177.06126067,0.00026224,2]
[356568654,1742688640641,-1512.81684643,0.00026127,2]
[356568660,1742688643266,-349.99771275,0.00026127,2]
[356568664,1742688646295,-5598.2010345,0.00025999,2]
[356568665,1742688646304,-199660.34875966,0.00026127,2]
[356568669,1742688892140,172.999999,0.00010959,2]
[356568696,1742689045420,-181.323074,0.00014918,2]
[356568726,1742689523359,-164.0984,0.00015068,2]
[356568727,1742689531110,-8.901599,0.00015068,2]
[356568728,1742689531130,-172.999999,0.00019178,2]
[356568729,1742689531151,-172.999999,0.00023288,2]
[356568730,1742689531171,-245.82463114,0.00026022,2]
[356568752,1742689684909,-208.30949799,0.00024,120]
[356568754,1742689695740,-150.0,0.000125,2]
[356568757,1742689749172,-147.03588531,0.000125,2]
[356568758,1742689749193,-1121.50551469,0.000245,120]
[356568759,1742689763115,-45.98448172,0.000245,120]
[356568760,1742689763138,-179.76122721,0.00024871,2]
[356568761,1742689763161,-320.88370976,0.00025122,2]
[356568787,1742689832509,-195.96721424,0.00025122,2]
[356568788,1742689832519,-261.05386804,0.00026022,2]
[356568789,1742689832529,-259.73116869,0.00026022,2]
[356568790,1742689832538,-1018.1632577,0.00026121,2]
[356568791,1742689832547,-16.04225826,0.00026121,2]
[356568815,1742689843539,-283.95774174,0.00026121,2]
[356568816,1742689843550,-236.20186586,0.00026122,2]
[356568817,1742689843561,-500.0,0.00026122,2]
[356568818,1742689843576,-500.0,0.00026122,2]
[356568819,1742689843587,-500.0,0.00026122,2]
[356568820,1742689843597,-256.23838169,0.00026122,2]
[356568821,1742689843607,-504.29786049,0.00026122,2]
[356568822,1742689843618,-500.0,0.00026122,2]
[356568823,1742689843629,-163.18672502,0.00026122,2]
[356568824,1742689843662,-336.81327498,0.00026122,2]
[356568825,1742689843673,-500.0,0.00026122,2]
[356568826,1742689843685,-344.85091207,0.00026122,2]
[356568827,1742689843706,-155.14908793,0.00026122,2]
[356568828,1742689843717,-500.0,0.00026122,2]
[356568829,1742689843728,-500.0,0.00026122,2]
[356568830,1742689843739,-500.0,0.00026122,2]
[356568831,1742689843749,-500.0,0.00026122,2]
[356568832,1742689843760,-500.0,0.00026122,2]
[356568833,1742689843771,-500.0,0.00026122,2]
[356568834,1742689843783,-500.0,0.00026122,2]
[356568835,1742689843794,-499.99999999,0.00026122,2]
[356568836,1742689843804,-500.0,0.00026122,2]
[356568837,1742689843815,-350.67914679,0.00026123,2]
[356568838,1742689843825,-545.85968547,0.00026123,2]
[356568839,1742689843836,-545.85968547,0.00026123,2]
[356568840,1742689843847,-545.85968547,0.00026123,2]
[356568841,1742689843857,-545.85968547,0.00026123,2]
[356568842,1742689843868,-545.85968547,0.00026123,2]
[356568843,1742689843880,-545.85968547,0.00026123,2]
[356568844,1742689843891,-545.85968547,0.00026123,2]
[356568845,1742689843904,-545.85968547,0.00026123,2]
[356568846,1742689843914,-545.85968547,0.00026123,2]
[356568847,1742689843925,-545.85968547,0.00026123,2]
[356568848,1742689843936,-545.85968547,0.00026123,2]
[356568849,1742689843946,-545.85968547,0.00026123,2]
[356568850,1742689843957,-545.85968547,0.00026123,2]
[356568851,1742689843967,-545.85968547,0.00026123,2]
[356568852,1742689843977,-545.85968547,0.00026123,2]
[356568853,1742689843987,-545.85968547,0.00026123,2]
[356568854,1742689843998,-545.85968547,0.00026123,2]
[356568855,1742689844008,-545.85968547,0.00026123,2]
[356568856,1742689844018,-545.85968547,0.00026123,2]
[356568857,1742689844028,-545.85968547,0.00026123,2]
[356568858,1742689844039,-545.85968547,0.00026123,2]
[356568859,1742689844049,-545.85968547,0.00026123,2]
[356568860,1742689844064,-545.85968547,0.00026123,2]
[356568861,1742689844075,-545.85968547,0.00026123,2]
[356568862,1742689844085,-545.85968547,0.00026123,2]
[356568863,1742689844095,-545.85968547,0.00026123,2]
[356568864,1742689844106,-545.85968547,0.00026123,2]
[356568865,1742689844116,-545.85968547,0.00026123,2]
[356568866,1742689844126,-545.85968547,0.00026123,2]
[356568867,1742689844137,-545.85968547,0.00026123,2]
[356568868,1742689844147,-440.73471511,0.00026123,2]
[356568874,1742690260966,172.999999,0.00010959,2]
[356568876,1742690745115,-257.7851211,0.00024979,2]
[356568877,1742690745136,-258.425462,0.00025039,2]
[356568878,1742690745157,-86.91727826,0.00025205,2]
[356568879,1742690753088,-1348.1529613,0.00025205,2]
[356568881,1742690849129,-361.87585991,0.00024953,2]
[356568882,1742690849150,-396.12666076,0.00025035,2]
[356568892,1742690947103,-877.83252794,0.00025035,2]
[356568893,1742690947374,-95.6690958,0.00025035,2]
[356568907,1742691032438,-104.3309042,0.00025035,2]
[356568908,1742691032448,-200.0,0.000252,2]
[356568909,1742691032457,-1480.92976044,0.00025205,2]